[Event "Early-Titled-Tuesday-Blitz-February-27-2024"]
[Site "Chess.com"]
[Date "2024.02.27"]
[Round "10"]
[White "FernandoArauzAlonso"]
[Black "Ramla2020"]
[Result "1/2-1/2"]
[WhiteElo "2612"]
[BlackElo "2404"]
[TimeControl "180+1"]
[EndTime "9:55:46 PST"]
[Termination "Game drawn by repetition"]

1. Nf3 {[%clk 0:03:00.9]} 1... d5 {[%clk 0:02:59.7]} 2. g3 {[%clk 0:03:00.2]}
2... c6 {[%clk 0:02:56.8]} 3. Bg2 {[%clk 0:03:00.6]} 3... Nf6 {[%clk 0:02:56.4]}
4. O-O {[%clk 0:03:01]} 4... Bf5 {[%clk 0:02:56.1]} 5. b3 {[%clk 0:02:58.6]}
5... h6 {[%clk 0:02:53.5]} 6. Bb2 {[%clk 0:02:58.8]} 6... e6 {[%clk 0:02:53.8]}
7. d3 {[%clk 0:02:59.2]} 7... Be7 {[%clk 0:02:52.3]} 8. Nbd2 {[%clk 0:02:59.8]}
8... O-O {[%clk 0:02:51.1]} 9. c4 {[%clk 0:02:59.9]} 9... Nbd7 {[%clk
0:02:50.2]} 10. Rc1 {[%clk 0:02:58.2]} 10... dxc4 {[%clk 0:02:48.6]} 11. Nxc4
{[%clk 0:02:57.8]} 11... Nb6 {[%clk 0:02:34.8]} 12. Qc2 {[%clk 0:02:54.6]} 12...
Nxc4 {[%clk 0:02:33.9]} 13. Qxc4 {[%clk 0:02:55.5]} 13... Qd5 {[%clk 0:02:30.2]}
14. Ne5 {[%clk 0:02:48.6]} 14... Qxc4 {[%clk 0:02:28.6]} 15. Rxc4 {[%clk
0:02:39.9]} 15... Rad8 {[%clk 0:02:24.7]} 16. Rfc1 {[%clk 0:02:38.3]} 16... Nd7
{[%clk 0:02:21.5]} 17. Nxd7 {[%clk 0:02:37]} 17... Rxd7 {[%clk 0:02:22.4]} 18.
Be5 {[%clk 0:01:42.1]} 18... f6 {[%clk 0:02:19.8]} 19. Bf4 {[%clk 0:01:42.3]}
19... e5 {[%clk 0:02:19.3]} 20. Be3 {[%clk 0:01:42.7]} 20... Be6 {[%clk
0:02:19.2]} 21. Ra4 {[%clk 0:01:30.7]} 21... a6 {[%clk 0:02:18.9]} 22. Bc5
{[%clk 0:01:29.7]} 22... Rfd8 {[%clk 0:02:12.6]} 23. Bxe7 {[%clk 0:01:28.9]}
23... Rxe7 {[%clk 0:02:13.5]} 24. Ra5 {[%clk 0:01:13.2]} 24... Red7 {[%clk
0:02:11.9]} 25. Rac5 {[%clk 0:01:12.9]} 25... Kf7 {[%clk 0:02:07.6]} 26. h4
{[%clk 0:01:08.2]} 26... g5 {[%clk 0:02:02.8]} 27. hxg5 {[%clk 0:01:08.2]} 27...
hxg5 {[%clk 0:02:03.7]} 28. Be4 {[%clk 0:00:59]} 28... Ke7 {[%clk 0:02:02.3]}
29. f4 {[%clk 0:00:53.6]} 29... exf4 {[%clk 0:01:54]} 30. gxf4 {[%clk
0:00:54.5]} 30... gxf4 {[%clk 0:01:49.6]} 31. Kf2 {[%clk 0:00:51.1]} 31... Rh8
{[%clk 0:01:43.4]} 32. Rh1 {[%clk 0:00:50.6]} 32... Rdd8 {[%clk 0:01:37]} 33.
Rch5 {[%clk 0:00:46.2]} 33... Rxh5 {[%clk 0:01:34.4]} 34. Rxh5 {[%clk
0:00:47.1]} 34... Kd6 {[%clk 0:01:28.8]} 35. Kf3 {[%clk 0:00:34.7]} 35... b5
{[%clk 0:01:25.3]} 36. Kxf4 {[%clk 0:00:34.4]} 36... a5 {[%clk 0:01:25.2]} 37.
Rh6 {[%clk 0:00:22.3]} 37... Rf8 {[%clk 0:01:24.7]} 38. Bf5 {[%clk 0:00:22.4]}
38... Bd5 {[%clk 0:01:22.8]} 39. e4 {[%clk 0:00:21.3]} 39... Bg8 {[%clk
0:01:20.9]} 40. e5+ {[%clk 0:00:21.7]} 40... Kc5 {[%clk 0:01:21]} 41. Rxf6
{[%clk 0:00:20.6]} 41... Rd8 {[%clk 0:01:20.9]} 42. Be4 {[%clk 0:00:15.6]} 42...
Bd5 {[%clk 0:01:19.7]} 43. e6 {[%clk 0:00:14.1]} 43... Kd6 {[%clk 0:01:13.5]}
44. Kf5 {[%clk 0:00:13.3]} 44... Rh8 {[%clk 0:01:05]} 45. Bxd5 {[%clk
0:00:10.3]} 45... cxd5 {[%clk 0:01:05]} 46. e7+ {[%clk 0:00:10.5]} 46... Kxe7
{[%clk 0:01:04.5]} 47. Rb6 {[%clk 0:00:10.5]} 47... b4 {[%clk 0:01:03.3]} 48.
Ke5 {[%clk 0:00:07.8]} 48... Rh5+ {[%clk 0:01:02.8]} 49. Kd4 {[%clk 0:00:07.8]}
49... Rh2 {[%clk 0:01:02.5]} 50. Kxd5 {[%clk 0:00:05.7]} 50... Rxa2 {[%clk
0:01:02.9]} 51. Rb7+ {[%clk 0:00:06.3]} 51... Kd8 {[%clk 0:01:02.1]} 52. d4
{[%clk 0:00:05.9]} 52... Ra3 {[%clk 0:00:58.8]} 53. Kd6 {[%clk 0:00:05.5]} 53...
Kc8 {[%clk 0:00:58.8]} 54. Rc7+ {[%clk 0:00:01.8]} 54... Kb8 {[%clk 0:00:58.4]}
55. Rc5 {[%clk 0:00:02.2]} 55... a4 {[%clk 0:00:56.4]} 56. bxa4 {[%clk
0:00:03.1]} 56... Rxa4 {[%clk 0:00:56.7]} 57. Rb5+ {[%clk 0:00:03.7]} 57... Kc8
{[%clk 0:00:56.7]} 58. d5 {[%clk 0:00:04.3]} 58... Ra6+ {[%clk 0:00:54.2]} 59.
Kc5 {[%clk 0:00:04.5]} 59... Kd7 {[%clk 0:00:54.2]} 60. Rxb4 {[%clk 0:00:04.6]}
60... Ra5+ {[%clk 0:00:54.1]} 61. Kd4 {[%clk 0:00:05]} 61... Ra1 {[%clk
0:00:53.8]} 62. Rb7+ {[%clk 0:00:05.1]} 62... Kd6 {[%clk 0:00:53.9]} 63. Rg7
{[%clk 0:00:06]} 63... Rd1+ {[%clk 0:00:53.5]} 64. Kc4 {[%clk 0:00:06.5]} 64...
Rc1+ {[%clk 0:00:53.6]} 65. Kd4 {[%clk 0:00:06.5]} 65... Rd1+ {[%clk 0:00:53.7]}
66. Kc4 {[%clk 0:00:07]} 66... Rc1+ {[%clk 0:00:52.1]} 67. Kd4 {[%clk 0:00:07]}
67... Rd1+ {[%clk 0:00:49.2]} 1/2-1/2

[Event "Early-Titled-Tuesday-Blitz-February-27-2024"]
[Site "Chess.com"]
[Date "2024.02.27"]
[Round "10"]
[White "maciek_92"]
[Black "Oleksandr_Bortnyk"]
[Result "1-0"]
[WhiteElo "2871"]
[BlackElo "3047"]
[TimeControl "180+1"]
[EndTime "9:55:47 PST"]
[Termination "maciek_92 won on time"]

1. c4 {[%clk 0:02:54.4]} 1... Nf6 {[%clk 0:02:54]} 2. Nc3 {[%clk 0:02:54.5]}
2... b6 {[%clk 0:02:52.5]} 3. e4 {[%clk 0:02:50.6]} 3... e5 {[%clk 0:02:51.5]}
4. g3 {[%clk 0:02:49.4]} 4... Bb7 {[%clk 0:02:52]} 5. Bg2 {[%clk 0:02:49.8]}
5... Bc5 {[%clk 0:02:49.4]} 6. Nge2 {[%clk 0:02:50.4]} 6... Nc6 {[%clk
0:02:44.4]} 7. O-O {[%clk 0:02:46.5]} 7... O-O {[%clk 0:02:38.2]} 8. d3 {[%clk
0:02:44.6]} 8... Nd4 {[%clk 0:02:37.6]} 9. h3 {[%clk 0:02:42.5]} 9... c6 {[%clk
0:02:35.3]} 10. Kh2 {[%clk 0:02:39.2]} 10... d5 {[%clk 0:02:21]} 11. f4 {[%clk
0:02:34.6]} 11... exf4 {[%clk 0:02:01]} 12. gxf4 {[%clk 0:02:34.1]} 12... dxc4
{[%clk 0:01:43]} 13. dxc4 {[%clk 0:02:32.2]} 13... Ba6 {[%clk 0:01:30.1]} 14. b3
{[%clk 0:02:28.7]} 14... Bc8 {[%clk 0:00:56.3]} 15. Ng3 {[%clk 0:02:01.1]} 15...
h5 {[%clk 0:00:26.2]} 16. Nxh5 {[%clk 0:01:43.9]} 16... Nxh5 {[%clk 0:00:27.1]}
17. Qxh5 {[%clk 0:01:43.8]} 17... Nc2 {[%clk 0:00:28]} 18. Rb1 {[%clk
0:01:03.4]} 18... Qd3 {[%clk 0:00:23.2]} 19. Rf3 {[%clk 0:00:58.7]} 19... Qd4
{[%clk 0:00:22.5]} 20. Bb2 {[%clk 0:00:53.4]} 20... Ne3 {[%clk 0:00:20.3]} 21.
Nd1 {[%clk 0:00:43.6]} 21... Qxe4 {[%clk 0:00:20.4]} 22. Rg3 {[%clk 0:00:43.7]}
22... Qxf4 {[%clk 0:00:12.5]} 23. Nxe3 {[%clk 0:00:38.6]} 23... Bd6 {[%clk
0:00:09.8]} 24. Nf1 {[%clk 0:00:34.8]} 24... Qf5 {[%clk 0:00:06.8]} 25. Qxf5
{[%clk 0:00:27.3]} 25... Bxf5 {[%clk 0:00:07.7]} 26. Rd1 {[%clk 0:00:27.5]}
26... Bxg3+ {[%clk 0:00:06.5]} 27. Nxg3 {[%clk 0:00:28.4]} 27... Be6 {[%clk
0:00:03.8]} 28. Bxc6 {[%clk 0:00:28.4]} 28... Rad8 {[%clk 0:00:04.7]} 29. Bd5
{[%clk 0:00:26.6]} 29... Rd7 {[%clk 0:00:04.5]} 30. Nh5 {[%clk 0:00:23.5]} 30...
Rfd8 {[%clk 0:00:04.5]} 31. Bxg7 {[%clk 0:00:20.3]} 31... Bxd5 {[%clk
0:00:04.2]} 32. cxd5 {[%clk 0:00:19.8]} 32... Rc7 {[%clk 0:00:04.5]} 33. Be5
{[%clk 0:00:17.8]} 33... Rc2+ {[%clk 0:00:04.6]} 34. Kg3 {[%clk 0:00:18.2]}
34... f5 {[%clk 0:00:04.6]} 35. Kf4 {[%clk 0:00:16.2]} 35... Rf2+ {[%clk
0:00:04]} 36. Ke3 {[%clk 0:00:16.4]} 36... Rxa2 {[%clk 0:00:03.5]} 37. Rg1+
{[%clk 0:00:16.3]} 37... Kf8 {[%clk 0:00:04]} 38. d6 {[%clk 0:00:15.2]} 38...
Kf7 {[%clk 0:00:02.8]} 39. Rg7+ {[%clk 0:00:14]} 39... Ke6 {[%clk 0:00:03.3]}
40. Re7+ {[%clk 0:00:14.5]} 40... Kd5 {[%clk 0:00:03.5]} 41. Nf6+ {[%clk
0:00:14.4]} 41... Kc6 {[%clk 0:00:04.1]} 42. Rc7+ {[%clk 0:00:14.6]} 42... Kb5
{[%clk 0:00:04.8]} 43. d7 {[%clk 0:00:14.9]} 43... Ra3 {[%clk 0:00:04.3]} 44.
Rc8 {[%clk 0:00:12.9]} 44... Rxb3+ {[%clk 0:00:04.2]} 45. Bc3 {[%clk 0:00:10.9]}
45... Rxd7 {[%clk 0:00:03.4]} 46. Nxd7 {[%clk 0:00:11.8]} 46... a5 {[%clk
0:00:03.2]} 47. h4 {[%clk 0:00:12.3]} 47... a4 {[%clk 0:00:02.8]} 48. h5 {[%clk
0:00:12.7]} 48... a3 {[%clk 0:00:03.5]} 49. Kd2 {[%clk 0:00:11.2]} 49... Rb1
{[%clk 0:00:02.4]} 50. Ra8 {[%clk 0:00:11.1]} 50... Rh1 {[%clk 0:00:02.3]} 51.
Rxa3 {[%clk 0:00:10.8]} 51... Rxh5 {[%clk 0:00:02.2]} 52. Rb3+ {[%clk
0:00:11.1]} 52... Kc4 {[%clk 0:00:02.5]} 53. Rb4+ {[%clk 0:00:10.9]} 53... Kd5
{[%clk 0:00:01.4]} 54. Nf6+ {[%clk 0:00:11.3]} 1-0

[Event "Early-Titled-Tuesday-Blitz-February-27-2024"]
[Site "Chess.com"]
[Date "2024.02.27"]
[Round "10"]
[White "ahkashefi2800"]
[Black "starworld123"]
[Result "0-1"]
[WhiteElo "2619"]
[BlackElo "2859"]
[TimeControl "180+1"]
[EndTime "9:55:49 PST"]
[Termination "starworld123 won by checkmate"]

1. Nf3 {[%clk 0:02:53.8]} 1... g6 {[%clk 0:02:59]} 2. g3 {[%clk 0:02:51.2]} 2...
Bg7 {[%clk 0:02:58.2]} 3. Bg2 {[%clk 0:02:51.7]} 3... Nf6 {[%clk 0:02:54.8]} 4.
O-O {[%clk 0:02:51.3]} 4... O-O {[%clk 0:02:55.4]} 5. b3 {[%clk 0:02:51.4]} 5...
d6 {[%clk 0:02:55]} 6. Bb2 {[%clk 0:02:51.4]} 6... e5 {[%clk 0:02:55.4]} 7. d3
{[%clk 0:02:48.3]} 7... Re8 {[%clk 0:02:49.5]} 8. Nbd2 {[%clk 0:02:47.4]} 8...
c6 {[%clk 0:02:49.3]} 9. c4 {[%clk 0:02:45.3]} 9... a5 {[%clk 0:02:46.9]} 10. a3
{[%clk 0:02:44.2]} 10... Na6 {[%clk 0:02:47.2]} 11. Qc2 {[%clk 0:02:43.5]} 11...
h6 {[%clk 0:02:42.1]} 12. Bc3 {[%clk 0:02:40.7]} 12... Qb6 {[%clk 0:02:19.1]}
13. e3 {[%clk 0:02:36.9]} 13... Bf5 {[%clk 0:02:14.7]} 14. Rab1 {[%clk
0:02:20.1]} 14... e4 {[%clk 0:02:05]} 15. dxe4 {[%clk 0:02:17.7]} 15... Nxe4
{[%clk 0:02:05.9]} 16. Bxg7 {[%clk 0:02:15.2]} 16... Nxd2 {[%clk 0:01:56.4]} 17.
Qxd2 {[%clk 0:02:15.2]} 17... Kxg7 {[%clk 0:01:56.9]} 18. Rb2 {[%clk 0:02:01]}
18... Rad8 {[%clk 0:01:45.5]} 19. Nd4 {[%clk 0:02:00.2]} 19... Bc8 {[%clk
0:01:25.1]} 20. b4 {[%clk 0:01:59.3]} 20... axb4 {[%clk 0:01:25.6]} 21. axb4
{[%clk 0:01:59.5]} 21... Nc7 {[%clk 0:01:21.1]} 22. Qc3 {[%clk 0:01:58.6]} 22...
Kg8 {[%clk 0:01:17.9]} 23. Ra1 {[%clk 0:01:53.4]} 23... Ne6 {[%clk 0:01:14.5]}
24. b5 {[%clk 0:01:38.5]} 24... Nxd4 {[%clk 0:01:06.1]} 25. exd4 {[%clk
0:01:06.7]} 25... c5 {[%clk 0:01:01.9]} 26. Rd2 {[%clk 0:00:35.5]} 26... Be6
{[%clk 0:00:49.3]} 27. Rad1 {[%clk 0:00:29.2]} 27... Rd7 {[%clk 0:00:36.2]} 28.
h3 {[%clk 0:00:25.8]} 28... Ra8 {[%clk 0:00:34.4]} 29. d5 {[%clk 0:00:24]} 29...
Bf5 {[%clk 0:00:24]} 30. g4 {[%clk 0:00:24.2]} 30... Bxg4 {[%clk 0:00:13.1]} 31.
hxg4 {[%clk 0:00:24.4]} 31... Re7 {[%clk 0:00:13.8]} 32. Rd3 {[%clk 0:00:23.6]}
32... Ra4 {[%clk 0:00:09.8]} 33. Rh3 {[%clk 0:00:23.2]} 33... Qa5 {[%clk
0:00:04.7]} 34. Qf6 {[%clk 0:00:19.9]} 34... Re1+ {[%clk 0:00:04.3]} 35. Rxe1
{[%clk 0:00:13.5]} 35... Qxe1+ {[%clk 0:00:05.2]} 36. Kh2 {[%clk 0:00:14.3]}
36... Ra1 {[%clk 0:00:04.6]} 37. Rxh6 {[%clk 0:00:13.5]} 37... Qg1+ {[%clk
0:00:05.1]} 38. Kg3 {[%clk 0:00:13.4]} 38... Ra3+ {[%clk 0:00:05.8]} 39. Kh4
{[%clk 0:00:06.3]} 39... Qh2+ {[%clk 0:00:01.9]} 40. Kg5 {[%clk 0:00:06.5]}
40... Qe5+ {[%clk 0:00:01.6]} 41. Qxe5 {[%clk 0:00:06.8]} 41... dxe5 {[%clk
0:00:02.5]} 42. d6 {[%clk 0:00:06.3]} 42... Kg7 {[%clk 0:00:02.6]} 43. Bd5
{[%clk 0:00:04.4]} 43... f6+ {[%clk 0:00:02.6]} 44. Kh4 {[%clk 0:00:03.6]} 44...
g5+ {[%clk 0:00:02.9]} 45. Kh5 {[%clk 0:00:02]} 45... Rh3# {[%clk 0:00:03.8]}
0-1

[Event "Early-Titled-Tuesday-Blitz-February-27-2024"]
[Site "Chess.com"]
[Date "2024.02.27"]
[Round "10"]
[White "Boundless_Strike"]
[Black "MightyGMpretender"]
[Result "1-0"]
[WhiteElo "2652"]
[BlackElo "2766"]
[TimeControl "180+1"]
[EndTime "9:55:50 PST"]
[Termination "Boundless_Strike won by resignation"]

1. d4 {[%clk 0:03:00.9]} 1... d5 {[%clk 0:02:56.1]} 2. e4 {[%clk 0:03:00.9]}
2... dxe4 {[%clk 0:02:55.6]} 3. Nc3 {[%clk 0:03:00.8]} 3... Nf6 {[%clk
0:02:55.4]} 4. f3 {[%clk 0:03:01.1]} 4... e3 {[%clk 0:02:43.9]} 5. Bxe3 {[%clk
0:02:59.3]} 5... Bf5 {[%clk 0:02:43.6]} 6. g4 {[%clk 0:02:58.2]} 6... Bg6 {[%clk
0:02:43.6]} 7. h4 {[%clk 0:02:58.5]} 7... h5 {[%clk 0:02:43.2]} 8. Nh3 {[%clk
0:02:54.1]} 8... hxg4 {[%clk 0:02:30.3]} 9. fxg4 {[%clk 0:02:53.1]} 9... Rxh4
{[%clk 0:02:27.8]} 10. Bg5 {[%clk 0:02:53]} 10... Rh7 {[%clk 0:02:15.6]} 11. Qf3
{[%clk 0:02:48.4]} 11... Nc6 {[%clk 0:02:14.6]} 12. Bb5 {[%clk 0:02:35.8]} 12...
Qd6 {[%clk 0:01:59.3]} 13. d5 {[%clk 0:02:30.2]} 13... O-O-O {[%clk 0:01:39.9]}
14. dxc6 {[%clk 0:02:21.3]} 14... Qb4 {[%clk 0:01:26.4]} 15. Rd1 {[%clk
0:01:52.9]} 15... Rd6 {[%clk 0:01:02.4]} 16. Bf4 {[%clk 0:01:40.6]} 16... Be4
{[%clk 0:00:45.2]} 17. Bxd6 {[%clk 0:01:06.1]} 17... exd6 {[%clk 0:00:41.9]} 18.
Qf4 {[%clk 0:00:40]} 18... d5 {[%clk 0:00:22.4]} 19. a3 {[%clk 0:00:36.1]} 19...
Qa5 {[%clk 0:00:14.2]} 20. Bd3 {[%clk 0:00:24.7]} 20... Bxh1 {[%clk 0:00:07]}
21. Bxh7 {[%clk 0:00:24.4]} 21... bxc6 {[%clk 0:00:06.7]} 22. Bf5+ {[%clk
0:00:20.8]} 22... Kb7 {[%clk 0:00:06.3]} 23. g5 {[%clk 0:00:21.3]} 23... Bxa3
{[%clk 0:00:04.8]} 24. bxa3 {[%clk 0:00:18.5]} 24... Qxc3+ {[%clk 0:00:05]} 25.
Rd2 {[%clk 0:00:18.2]} 25... Ne4 {[%clk 0:00:04.6]} 26. Bxe4 {[%clk 0:00:18.2]}
26... Bxe4 {[%clk 0:00:05.3]} 27. Nf2 {[%clk 0:00:18]} 27... Bxc2 {[%clk
0:00:03.8]} 28. Qb4+ {[%clk 0:00:17.5]} 28... Qxb4 {[%clk 0:00:04]} 29. axb4
{[%clk 0:00:18.4]} 29... Bf5 {[%clk 0:00:04.3]} 30. Ra2 {[%clk 0:00:18.4]} 30...
Kb6 {[%clk 0:00:04.3]} 31. Ra5 {[%clk 0:00:18.6]} 31... f6 {[%clk 0:00:03]} 32.
gxf6 {[%clk 0:00:18.4]} 32... gxf6 {[%clk 0:00:03.9]} 33. Kd2 {[%clk 0:00:19.2]}
33... Bg6 {[%clk 0:00:03.3]} 34. Ke3 {[%clk 0:00:19.7]} 34... Bc2 {[%clk
0:00:03.4]} 35. Ng4 {[%clk 0:00:18.9]} 35... f5 {[%clk 0:00:03.1]} 36. Ne5
{[%clk 0:00:19.4]} 36... Be4 {[%clk 0:00:03.2]} 37. Nd7+ {[%clk 0:00:19.5]}
37... Kb7 {[%clk 0:00:03.2]} 38. Nc5+ {[%clk 0:00:20]} 38... Kb6 {[%clk
0:00:04]} 39. Ne6 {[%clk 0:00:19.5]} 39... Bc2 {[%clk 0:00:03.7]} 40. Nd4 {[%clk
0:00:19.7]} 40... Be4 {[%clk 0:00:03.5]} 41. Rc5 {[%clk 0:00:20.2]} 41... Kb7
{[%clk 0:00:01.9]} 42. Rxc6 {[%clk 0:00:20.4]} 42... Kb8 {[%clk 0:00:01.6]} 43.
Rc5 {[%clk 0:00:20.6]} 43... Kb7 {[%clk 0:00:02.3]} 44. Kf4 {[%clk 0:00:20]}
44... Kb6 {[%clk 0:00:02.8]} 45. Nxf5 {[%clk 0:00:20.1]} 45... a5 {[%clk
0:00:02.6]} 46. Rxa5 {[%clk 0:00:20]} 46... c6 {[%clk 0:00:02.9]} 47. Rc5 {[%clk
0:00:20.2]} 47... Bd3 {[%clk 0:00:03]} 48. Nd4 {[%clk 0:00:20.5]} 48... Bc4
{[%clk 0:00:02.7]} 49. Rxc6+ {[%clk 0:00:20.5]} 49... Kb7 {[%clk 0:00:03.4]} 50.
Rc5 {[%clk 0:00:21]} 50... Kb6 {[%clk 0:00:03.8]} 51. Ke5 {[%clk 0:00:21.5]}
51... Ba2 {[%clk 0:00:04.3]} 52. Kd6 {[%clk 0:00:22]} 52... Kb7 {[%clk
0:00:04.9]} 53. Rc6 {[%clk 0:00:22.4]} 53... Ka7 {[%clk 0:00:04.9]} 54. Kc5
{[%clk 0:00:22.8]} 54... Kb7 {[%clk 0:00:05.8]} 55. Rf6 {[%clk 0:00:23.3]} 55...
Kc7 {[%clk 0:00:05.5]} 56. b5 {[%clk 0:00:24.2]} 56... Kd8 {[%clk 0:00:05.8]}
57. Rf7 {[%clk 0:00:24.7]} 1-0

[Event "Early-Titled-Tuesday-Blitz-February-27-2024"]
[Site "Chess.com"]
[Date "2024.02.27"]
[Round "10"]
[White "tetrix83"]
[Black "AlexTruskavetsky"]
[Result "1-0"]
[WhiteElo "2583"]
[BlackElo "2731"]
[TimeControl "180+1"]
[EndTime "9:55:51 PST"]
[Termination "tetrix83 won by checkmate"]

1. e4 {[%clk 0:03:00.9]} 1... c5 {[%clk 0:03:00]} 2. Nf3 {[%clk 0:03:01]} 2...
Nc6 {[%clk 0:03:00.2]} 3. Bb5 {[%clk 0:03:01]} 3... g6 {[%clk 0:03:00.3]} 4. O-O
{[%clk 0:03:00.7]} 4... Bg7 {[%clk 0:03:00.7]} 5. c3 {[%clk 0:03:01.3]} 5... Nf6
{[%clk 0:03:01.1]} 6. Re1 {[%clk 0:02:59.7]} 6... O-O {[%clk 0:03:01.2]} 7. d4
{[%clk 0:02:59.9]} 7... cxd4 {[%clk 0:03:01.2]} 8. cxd4 {[%clk 0:03:00.8]} 8...
d6 {[%clk 0:03:01.7]} 9. h3 {[%clk 0:02:52.8]} 9... Bd7 {[%clk 0:02:56.6]} 10.
Nc3 {[%clk 0:02:52.2]} 10... a6 {[%clk 0:02:56.5]} 11. Bf1 {[%clk 0:02:50.9]}
11... Rc8 {[%clk 0:02:56.2]} 12. Be3 {[%clk 0:02:43.1]} 12... Na5 {[%clk
0:02:50.3]} 13. e5 {[%clk 0:02:30.4]} 13... Ne8 {[%clk 0:02:49.9]} 14. Rc1
{[%clk 0:02:21.5]} 14... Nc4 {[%clk 0:02:48.2]} 15. Bg5 {[%clk 0:01:56.5]} 15...
dxe5 {[%clk 0:02:30.1]} 16. dxe5 {[%clk 0:01:55.2]} 16... h6 {[%clk 0:02:23.4]}
17. Bxe7 {[%clk 0:01:47.8]} 17... Qxe7 {[%clk 0:02:21.4]} 18. Nd5 {[%clk
0:01:47.9]} 18... Qd8 {[%clk 0:02:20]} 19. Bxc4 {[%clk 0:01:47.1]} 19... Be6
{[%clk 0:02:19.2]} 20. Ne3 {[%clk 0:01:36.6]} 20... Nc7 {[%clk 0:02:09.4]} 21.
Bxe6 {[%clk 0:01:29]} 21... Nxe6 {[%clk 0:02:09.2]} 22. Qxd8 {[%clk 0:01:20.2]}
22... Rfxd8 {[%clk 0:02:08.9]} 23. Rxc8 {[%clk 0:01:19.1]} 23... Rxc8 {[%clk
0:02:09.8]} 24. Rd1 {[%clk 0:01:18.3]} 24... Rc7 {[%clk 0:01:57.1]} 25. b3
{[%clk 0:01:11.7]} 25... Bf8 {[%clk 0:01:51.9]} 26. Nd5 {[%clk 0:01:10.4]} 26...
Rc2 {[%clk 0:01:52.1]} 27. Nf6+ {[%clk 0:01:09.4]} 27... Kg7 {[%clk 0:01:52.1]}
28. Rd2 {[%clk 0:01:03.3]} 28... Rxd2 {[%clk 0:01:37.3]} 29. Nxd2 {[%clk
0:01:04.2]} 29... Bc5 {[%clk 0:01:37.8]} 30. g3 {[%clk 0:00:59]} 30... Bd4
{[%clk 0:01:35.3]} 31. Nd7 {[%clk 0:00:59]} 31... Bc3 {[%clk 0:01:27.9]} 32. Ne4
{[%clk 0:00:56.1]} 32... Bd4 {[%clk 0:01:28.3]} 33. Kg2 {[%clk 0:00:53.3]} 33...
Nd8 {[%clk 0:01:27.8]} 34. f4 {[%clk 0:00:49.9]} 34... h5 {[%clk 0:01:23.6]} 35.
Nd6 {[%clk 0:00:44.9]} 35... b5 {[%clk 0:01:19.9]} 36. Ne8+ {[%clk 0:00:41.2]}
36... Kg8 {[%clk 0:01:19.7]} 37. Nc7 {[%clk 0:00:39.6]} 37... h4 {[%clk
0:01:10]} 38. gxh4 {[%clk 0:00:34.5]} 38... Nc6 {[%clk 0:01:04.5]} 39. Nxa6
{[%clk 0:00:32.8]} 39... Ne7 {[%clk 0:01:03.5]} 40. Nc7 {[%clk 0:00:29.3]} 40...
b4 {[%clk 0:01:04]} 41. Nf6+ {[%clk 0:00:28.3]} 41... Kg7 {[%clk 0:01:02.1]} 42.
Ncd5 {[%clk 0:00:28.2]} 42... Nc6 {[%clk 0:01:00.6]} 43. Kf3 {[%clk 0:00:27.5]}
43... Bb2 {[%clk 0:00:58]} 44. Ke4 {[%clk 0:00:25.1]} 44... Ba3 {[%clk
0:00:56.5]} 45. h5 {[%clk 0:00:25]} 45... Nd8 {[%clk 0:00:51.6]} 46. hxg6 {[%clk
0:00:23.6]} 46... Kxg6 {[%clk 0:00:52.5]} 47. h4 {[%clk 0:00:22.4]} 47... Kh6
{[%clk 0:00:47.4]} 48. f5 {[%clk 0:00:20.7]} 48... Nc6 {[%clk 0:00:45.1]} 49.
Ne3 {[%clk 0:00:18.3]} 49... Bb2 {[%clk 0:00:43.3]} 50. Neg4+ {[%clk 0:00:18.3]}
50... Kg7 {[%clk 0:00:43.9]} 51. h5 {[%clk 0:00:18.7]} 51... Bc1 {[%clk
0:00:41.5]} 52. Kd5 {[%clk 0:00:16.8]} 52... Ne7+ {[%clk 0:00:41.4]} 53. Ke4
{[%clk 0:00:17.4]} 53... Nc6 {[%clk 0:00:41]} 54. Nd5 {[%clk 0:00:17.3]} 54...
Bd2 {[%clk 0:00:40.6]} 55. f6+ {[%clk 0:00:16.2]} 55... Kf8 {[%clk 0:00:36.6]}
56. h6 {[%clk 0:00:16]} 56... Kg8 {[%clk 0:00:36.7]} 57. Ne7+ {[%clk 0:00:16.1]}
57... Kh7 {[%clk 0:00:35.1]} 58. Nxc6 {[%clk 0:00:15.9]} 58... Kg6 {[%clk
0:00:35.4]} 59. Ne7+ {[%clk 0:00:15.1]} 59... Kh7 {[%clk 0:00:35.8]} 60. e6
{[%clk 0:00:15]} 60... Bxh6 {[%clk 0:00:28.7]} 61. Nxh6 {[%clk 0:00:13.2]} 61...
Kxh6 {[%clk 0:00:29.1]} 62. exf7 {[%clk 0:00:13.8]} 62... Kh7 {[%clk 0:00:30]}
63. Kf5 {[%clk 0:00:10.2]} 63... Kh6 {[%clk 0:00:30.5]} 64. f8=Q+ {[%clk
0:00:10.4]} 64... Kh5 {[%clk 0:00:31.4]} 65. Qh8# {[%clk 0:00:10.4]} 1-0